[Event "*** Titled Tuesday Blitz"]
[Site "Chess.com"]
[Date "2020.04.14"]
[Round "1"]
[White "Gaguna"]
[Black "kikydu96"]
[Result "1-0"]
[WhiteElo "2682"]
[BlackElo "2338"]
[TimeControl "180+1"]
[EndTime "10:08:23 PDT"]
[Termination "Gaguna won on time"]

1. d4 {[%clk 0:02:58.6]} 1... f5 {[%clk 0:02:54]} 2. g3 {[%clk 0:02:57.3]} 2...
Nf6 {[%clk 0:02:53.5]} 3. Bg2 {[%clk 0:02:57.6]} 3... g6 {[%clk 0:02:53.3]} 4.
c3 {[%clk 0:02:57.4]} 4... Bg7 {[%clk 0:02:53.3]} 5. Qb3 {[%clk 0:02:58]} 5...
d5 {[%clk 0:02:49.8]} 6. Nd2 {[%clk 0:02:57.7]} 6... O-O {[%clk 0:02:44.7]} 7.
Nh3 {[%clk 0:02:58.3]} 7... c6 {[%clk 0:02:31.5]} 8. Nf4 {[%clk 0:02:58.4]} 8...
Kh8 {[%clk 0:02:27.1]} 9. Nf3 {[%clk 0:02:55.8]} 9... Ne4 {[%clk 0:02:22.5]} 10.
Nd3 {[%clk 0:02:52.3]} 10... Nd7 {[%clk 0:02:21.3]} 11. Bf4 {[%clk 0:02:50.4]}
11... Qb6 {[%clk 0:02:19.2]} 12. Nfe5 {[%clk 0:02:49.2]} 12... Nxe5 {[%clk
0:02:09.6]} 13. Bxe5 {[%clk 0:02:48.5]} 13... Bxe5 {[%clk 0:01:56.9]} 14. Nxe5
{[%clk 0:02:48.1]} 14... f4 {[%clk 0:01:56.7]} 15. f3 {[%clk 0:02:30.9]} 15...
Nd6 {[%clk 0:01:51.9]} 16. gxf4 {[%clk 0:02:30.4]} 16... Rxf4 {[%clk 0:01:45.7]}
17. e3 {[%clk 0:02:29.6]} 17... Rf8 {[%clk 0:01:43]} 18. Qxb6 {[%clk 0:02:28.9]}
18... axb6 {[%clk 0:01:42.3]} 19. Ke2 {[%clk 0:02:29.8]} 19... Nf7 {[%clk
0:01:34.3]} 20. h4 {[%clk 0:02:25]} 20... Nxe5 {[%clk 0:01:32.3]} 21. dxe5
{[%clk 0:02:24.6]} 21... Bf5 {[%clk 0:01:17]} 22. f4 {[%clk 0:02:23.4]} 22... h5
{[%clk 0:01:11.8]} 23. Bh3 {[%clk 0:02:21.1]} 23... e6 {[%clk 0:00:50.7]} 24.
Bxf5 {[%clk 0:02:18.8]} 24... gxf5 {[%clk 0:00:51.6]} 25. Rhg1 {[%clk
0:02:18.2]} 25... Rg8 {[%clk 0:00:52]} 26. Rg5 {[%clk 0:02:18.3]} 26... Rxg5
{[%clk 0:00:51.4]} 27. hxg5 {[%clk 0:02:11.6]} 27... Kg7 {[%clk 0:00:51.2]} 28.
a3 {[%clk 0:02:09.8]} 28... c5 {[%clk 0:00:48.4]} 29. Rh1 {[%clk 0:02:05.1]}
29... Kg6 {[%clk 0:00:48]} 30. Kf3 {[%clk 0:02:06]} 30... Ra5 {[%clk 0:00:38.3]}
31. Kg3 {[%clk 0:02:05.7]} 31... Rb5 {[%clk 0:00:38.5]} 32. Rh2 {[%clk 0:02:06]}
32... Rb3 {[%clk 0:00:38.7]} 33. Rd2 {[%clk 0:02:05.3]} 33... b5 {[%clk
0:00:36.6]} 34. Kf3 {[%clk 0:02:04.7]} 34... h4 {[%clk 0:00:25.9]} 35. Ke2
{[%clk 0:01:59.5]} 35... b4 {[%clk 0:00:21.9]} 36. cxb4 {[%clk 0:01:54.9]} 36...
cxb4 {[%clk 0:00:13.9]} 37. a4 {[%clk 0:01:53.9]} 37... h3 {[%clk 0:00:11.6]}
38. Kf3 {[%clk 0:01:45.5]} 38... b6 {[%clk 0:00:10.1]} 39. Rc2 {[%clk
0:01:10.3]} 39... d4 {[%clk 0:00:10.5]} 40. Rc6 {[%clk 0:01:08.3]} 40... Rxe3+
{[%clk 0:00:10.5]} 41. Kf2 {[%clk 0:01:08.4]} 41... h2 {[%clk 0:00:10.6]} 42.
Kg2 {[%clk 0:01:08.5]} 42... Rh3 {[%clk 0:00:09.6]} 43. Rxe6+ {[%clk 0:01:07]}
43... Kg7 {[%clk 0:00:09.6]} 44. Kh1 {[%clk 0:01:05.6]} 44... d3 {[%clk
0:00:08.9]} 45. Rd6 {[%clk 0:01:05.7]} 45... Rh4 {[%clk 0:00:08.1]} 46. Rxd3
{[%clk 0:01:00]} 46... Rxf4 {[%clk 0:00:08.3]} 47. Kxh2 {[%clk 0:01:00.2]} 47...
Re4 {[%clk 0:00:08.7]} 48. Rd7+ {[%clk 0:00:58.1]} 48... Kg6 {[%clk 0:00:08.8]}
49. Rd6+ {[%clk 0:00:58.2]} 49... Kxg5 {[%clk 0:00:09.3]} 50. Rxb6 {[%clk
0:00:59.1]} 50... Re2+ {[%clk 0:00:08.4]} 51. Kg3 {[%clk 0:00:58.8]} 51... Rxb2
{[%clk 0:00:09.3]} 52. a5 {[%clk 0:00:58]} 52... Rb3+ {[%clk 0:00:09.8]} 53. Kf2
{[%clk 0:00:57.1]} 53... Ra3 {[%clk 0:00:10.7]} 54. a6 {[%clk 0:00:55.9]} 54...
Kf4 {[%clk 0:00:09.4]} 55. e6 {[%clk 0:00:54.9]} 55... Ra2+ {[%clk 0:00:09.9]}
56. Ke1 {[%clk 0:00:54.7]} 56... Ke3 {[%clk 0:00:07.9]} 57. Kd1 {[%clk
0:00:49.6]} 57... Rd2+ {[%clk 0:00:06.9]} 58. Kc1 {[%clk 0:00:48.4]} 58... Rd8
{[%clk 0:00:07.2]} 59. e7 {[%clk 0:00:46.7]} 59... Re8 {[%clk 0:00:07.4]} 60.
Re6+ {[%clk 0:00:47]} 60... Kd4 {[%clk 0:00:06.2]} 61. a7 {[%clk 0:00:47.9]}
61... f4 {[%clk 0:00:05.5]} 62. a8=Q {[%clk 0:00:46.6]} 62... Rxa8 {[%clk
0:00:05.7]} 63. e8=Q {[%clk 0:00:47.5]} 63... Rxe8 {[%clk 0:00:06]} 64. Rxe8
{[%clk 0:00:47.9]} 64... f3 {[%clk 0:00:06.9]} 65. Kd2 {[%clk 0:00:47.1]} 65...
b3 {[%clk 0:00:06]} 66. Re1 {[%clk 0:00:36]} 66... Kc4 {[%clk 0:00:03.5]} 67.
Rf1 {[%clk 0:00:28.7]} 67... b2 {[%clk 0:00:01.3]} 68. Kc2 {[%clk 0:00:27.8]}
1-0

[Event "*** Titled Tuesday Blitz"]
[Site "Chess.com"]
[Date "2020.04.14"]
[Round "1"]
[White "IMRosen"]
[Black "Taran2004"]
[Result "0-1"]
[WhiteElo "2505"]
[BlackElo "1999"]
[TimeControl "180+1"]
[EndTime "10:08:23 PDT"]
[Termination "Taran2004 won on time"]

1. d4 {[%clk 0:02:52.9]} 1... Nf6 {[%clk 0:02:58.7]} 2. Bf4 {[%clk 0:02:49.7]}
2... g6 {[%clk 0:02:56.3]} 3. Nc3 {[%clk 0:02:43.5]} 3... d5 {[%clk 0:02:54.5]}
4. e3 {[%clk 0:02:43.3]} 4... Bg7 {[%clk 0:02:53]} 5. h4 {[%clk 0:02:43.8]} 5...
c5 {[%clk 0:02:51.8]} 6. Nb5 {[%clk 0:02:43]} 6... Na6 {[%clk 0:02:50.5]} 7. c3
{[%clk 0:02:39.9]} 7... O-O {[%clk 0:02:47.4]} 8. Nf3 {[%clk 0:02:38.1]} 8...
Bg4 {[%clk 0:02:45.8]} 9. Be2 {[%clk 0:02:37.6]} 9... Qb6 {[%clk 0:02:40.5]} 10.
a4 {[%clk 0:02:37.2]} 10... cxd4 {[%clk 0:02:38.4]} 11. exd4 {[%clk 0:02:36.4]}
11... Rfe8 {[%clk 0:02:35]} 12. Ne5 {[%clk 0:02:35.6]} 12... Bxe2 {[%clk
0:02:33.9]} 13. Qxe2 {[%clk 0:02:35.8]} 13... Rad8 {[%clk 0:02:31.8]} 14. a5
{[%clk 0:02:19]} 14... Qe6 {[%clk 0:02:29.1]} 15. O-O {[%clk 0:02:06]} 15... Nh5
{[%clk 0:02:23.3]} 16. Qf3 {[%clk 0:01:45.1]} 16... Qf6 {[%clk 0:01:59.8]} 17.
Bh2 {[%clk 0:01:28.3]} 17... Qxf3 {[%clk 0:01:56]} 18. Nxf3 {[%clk 0:01:28.3]}
18... Ra8 {[%clk 0:01:52]} 19. Rfe1 {[%clk 0:01:24.7]} 19... Nf6 {[%clk
0:01:51.6]} 20. Ne5 {[%clk 0:01:20.7]} 20... Rec8 {[%clk 0:01:38.5]} 21. f3
{[%clk 0:01:15.4]} 21... Bf8 {[%clk 0:01:35.8]} 22. g4 {[%clk 0:01:12.8]} 22...
e6 {[%clk 0:01:33.1]} 23. Bf4 {[%clk 0:01:06.5]} 23... Nb8 {[%clk 0:01:21.2]}
24. Bg5 {[%clk 0:00:55.1]} 24... Nfd7 {[%clk 0:01:13.7]} 25. Nd3 {[%clk
0:00:44.7]} 25... a6 {[%clk 0:01:10.6]} 26. Na3 {[%clk 0:00:44.8]} 26... Nc6
{[%clk 0:01:07.7]} 27. Nc2 {[%clk 0:00:43.7]} 27... Bg7 {[%clk 0:01:04.6]} 28.
Kg2 {[%clk 0:00:43.7]} 28... Re8 {[%clk 0:01:00.3]} 29. h5 {[%clk 0:00:39.2]}
29... f6 {[%clk 0:00:59.7]} 30. Bd2 {[%clk 0:00:38.5]} 30... e5 {[%clk
0:00:59.4]} 31. Nf2 {[%clk 0:00:32]} 31... exd4 {[%clk 0:00:55.6]} 32. cxd4
{[%clk 0:00:30.3]} 32... f5 {[%clk 0:00:55.6]} 33. Bc3 {[%clk 0:00:28]} 33...
fxg4 {[%clk 0:00:50.3]} 34. fxg4 {[%clk 0:00:25.9]} 34... gxh5 {[%clk
0:00:50.3]} 35. gxh5 {[%clk 0:00:26.8]} 35... Nf6 {[%clk 0:00:50.3]} 36. Ne3
{[%clk 0:00:17.6]} 36... Rad8 {[%clk 0:00:45.4]} 37. Nf5 {[%clk 0:00:13.9]}
37... Nxh5 {[%clk 0:00:41.3]} 38. Nxg7 {[%clk 0:00:10.6]} 38... Kxg7 {[%clk
0:00:39.9]} 39. Ng4 {[%clk 0:00:06.9]} 39... Nf4+ {[%clk 0:00:38.8]} 40. Kf3
{[%clk 0:00:06.6]} 40... Ng6 {[%clk 0:00:36.7]} 41. Rg1 {[%clk 0:00:06.1]} 41...
Rf8+ {[%clk 0:00:35.5]} 42. Ke3 {[%clk 0:00:05.8]} 42... Rde8+ {[%clk 0:00:35]}
43. Kd2 {[%clk 0:00:06.5]} 43... Rf4 {[%clk 0:00:33.4]} 44. Raf1 {[%clk
0:00:06.4]} 44... Rxf1 {[%clk 0:00:30.2]} 45. Rxf1 {[%clk 0:00:07.3]} 45... Re4
{[%clk 0:00:30.3]} 46. Ne3 {[%clk 0:00:05.2]} 46... Nce7 {[%clk 0:00:22.4]} 47.
Rg1 {[%clk 0:00:04.3]} 47... h5 {[%clk 0:00:20.6]} 48. Kd3 {[%clk 0:00:03.9]}
48... Rf4 {[%clk 0:00:15.9]} 49. Bd2 {[%clk 0:00:03.9]} 49... Rf8 {[%clk
0:00:12.3]} 50. Rh1 {[%clk 0:00:03.7]} 50... h4 {[%clk 0:00:11.9]} 51. Ng4
{[%clk 0:00:03.2]} 51... Rh8 {[%clk 0:00:09.7]} 52. Rh3 {[%clk 0:00:02.6]} 52...
Nf5 {[%clk 0:00:09.4]} 53. Ne5 {[%clk 0:00:02.2]} 53... Nxe5+ {[%clk 0:00:09.2]}
54. dxe5 {[%clk 0:00:03.1]} 54... Kf7 {[%clk 0:00:09.7]} 55. Be1 {[%clk
0:00:02.5]} 55... Ke6 {[%clk 0:00:10.2]} 56. Bc3 {[%clk 0:00:02.2]} 56... d4
{[%clk 0:00:09.1]} 57. Bxd4 {[%clk 0:00:02.3]} 57... Rd8 {[%clk 0:00:09]} 0-1

[Event "*** Titled Tuesday Blitz"]
[Site "Chess.com"]
[Date "2020.04.14"]
[Round "1"]
[White "arjwezhrtdrz"]
[Black "TheCount"]
[Result "0-1"]
[WhiteElo "2218"]
[BlackElo "2596"]
[TimeControl "180+1"]
[EndTime "10:08:24 PDT"]
[Termination "TheCount won on time"]

1. e4 {[%clk 0:02:59.3]} 1... c5 {[%clk 0:02:45.5]} 2. c3 {[%clk 0:02:56.1]}
2... Nf6 {[%clk 0:02:44.9]} 3. e5 {[%clk 0:02:54.9]} 3... Nd5 {[%clk 0:02:45]}
4. Nf3 {[%clk 0:02:55.5]} 4... Nc6 {[%clk 0:02:42.7]} 5. d4 {[%clk 0:02:55.3]}
5... cxd4 {[%clk 0:02:43]} 6. cxd4 {[%clk 0:02:56.2]} 6... d6 {[%clk 0:02:43.4]}
7. Bc4 {[%clk 0:02:55.1]} 7... e6 {[%clk 0:02:43.9]} 8. O-O {[%clk 0:02:54.3]}
8... Be7 {[%clk 0:02:40]} 9. Qe2 {[%clk 0:02:53.9]} 9... O-O {[%clk 0:02:39.7]}
10. Rd1 {[%clk 0:02:53.3]} 10... Bd7 {[%clk 0:02:35.6]} 11. h3 {[%clk 0:02:51]}
11... Qc7 {[%clk 0:02:33.7]} 12. Bxd5 {[%clk 0:02:50.5]} 12... exd5 {[%clk
0:02:33.8]} 13. Nc3 {[%clk 0:02:50.3]} 13... Be6 {[%clk 0:02:30.3]} 14. Bf4
{[%clk 0:02:19.8]} 14... Rfe8 {[%clk 0:02:24.5]} 15. exd6 {[%clk 0:02:18.4]}
15... Bxd6 {[%clk 0:02:22.8]} 16. Nb5 {[%clk 0:02:18.5]} 16... Bxf4 {[%clk
0:02:14]} 17. Nxc7 {[%clk 0:02:15.4]} 17... Bxc7 {[%clk 0:02:14.9]} 18. Qd2
{[%clk 0:02:10.5]} 18... Bb6 {[%clk 0:02:13.8]} 19. a3 {[%clk 0:02:01.5]} 19...
Bf5 {[%clk 0:02:12.5]} 20. Re1 {[%clk 0:01:59.7]} 20... Be4 {[%clk 0:02:09.6]}
21. Re3 {[%clk 0:01:11.2]} 21... Bxf3 {[%clk 0:02:00.8]} 22. Rxf3 {[%clk
0:01:10.9]} 22... Nxd4 {[%clk 0:01:59.8]} 23. Rd3 {[%clk 0:00:57.4]} 23... Re4
{[%clk 0:01:59.2]} 24. Kf1 {[%clk 0:00:50.7]} 24... Rae8 {[%clk 0:01:54.6]} 25.
Rd1 {[%clk 0:00:50]} 25... Re2 {[%clk 0:01:47.9]} 26. Rxd4 {[%clk 0:00:43.9]}
26... Rxd2 {[%clk 0:01:47.8]} 27. R4xd2 {[%clk 0:00:41.9]} 27... d4 {[%clk
0:01:48]} 28. Re2 {[%clk 0:00:29.7]} 28... Rc8 {[%clk 0:01:42.8]} 29. Re7 {[%clk
0:00:29.3]} 29... g6 {[%clk 0:01:36.7]} 30. Ke2 {[%clk 0:00:26.9]} 30... Rc5
{[%clk 0:01:03]} 31. Rxb7 {[%clk 0:00:24.9]} 31... Re5+ {[%clk 0:01:00.9]} 32.
Kd3 {[%clk 0:00:24.5]} 32... Rf5 {[%clk 0:01:01.3]} 33. f3 {[%clk 0:00:24.5]}
33... h5 {[%clk 0:01:01.1]} 34. Rd2 {[%clk 0:00:23.6]} 34... Re5 {[%clk
0:01:01.5]} 35. Re2 {[%clk 0:00:23.7]} 35... Rc5 {[%clk 0:01:01.5]} 36. Ree7
{[%clk 0:00:23.4]} 36... Rf5 {[%clk 0:00:59.1]} 37. Rb8+ {[%clk 0:00:21.7]}
37... Kg7 {[%clk 0:00:58.8]} 38. Rbb7 {[%clk 0:00:22.2]} 38... h4 {[%clk
0:00:57.8]} 39. Ke4 {[%clk 0:00:21.9]} 39... Bc5 {[%clk 0:00:50.4]} 40. Red7
{[%clk 0:00:21.4]} 40... Bb6 {[%clk 0:00:49]} 41. b4 {[%clk 0:00:21.5]} 41...
Rf6 {[%clk 0:00:47.8]} 42. a4 {[%clk 0:00:21.3]} 42... Re6+ {[%clk 0:00:48.3]}
43. Kd3 {[%clk 0:00:21.4]} 43... Re3+ {[%clk 0:00:48.5]} 44. Kd2 {[%clk
0:00:21.7]} 44... Ra3 {[%clk 0:00:37.7]} 45. Rxf7+ {[%clk 0:00:21.2]} 45... Kh6
{[%clk 0:00:37.6]} 46. Rh7+ {[%clk 0:00:17.6]} 46... Kg5 {[%clk 0:00:37.5]} 47.
a5 {[%clk 0:00:16.7]} 47... Bd8 {[%clk 0:00:34.3]} 48. Rxa7 {[%clk 0:00:16.5]}
48... Ra2+ {[%clk 0:00:32.6]} 49. Kd3 {[%clk 0:00:16.8]} 49... Bf6 {[%clk
0:00:33.5]} 50. Ra6 {[%clk 0:00:13.6]} 50... Ra3+ {[%clk 0:00:33.5]} 51. Kd2
{[%clk 0:00:13.1]} 51... Ra2+ {[%clk 0:00:33.9]} 52. Kd1 {[%clk 0:00:13.2]}
52... Ra1+ {[%clk 0:00:32.2]} 53. Kc2 {[%clk 0:00:13.4]} 53... Ra2+ {[%clk
0:00:32.2]} 54. Kb1 {[%clk 0:00:13.7]} 54... Rxg2 {[%clk 0:00:29.4]} 55. b5
{[%clk 0:00:12]} 55... d3 {[%clk 0:00:28.4]} 56. Rd6 {[%clk 0:00:10.3]} 56...
Rb2+ {[%clk 0:00:28.2]} 57. Kc1 {[%clk 0:00:09.8]} 57... Rxb5 {[%clk 0:00:29.1]}
58. a6 {[%clk 0:00:09.8]} 58... Be5 {[%clk 0:00:26]} 59. Rdd7 {[%clk 0:00:08.8]}
59... Bf4+ {[%clk 0:00:24.8]} 0-1

[Event "*** Titled Tuesday Blitz"]
[Site "Chess.com"]
[Date "2020.04.14"]
[Round "1"]
[White "wnstop"]
[Black "AnnaChessLook"]
[Result "1/2-1/2"]
[WhiteElo "2593"]
[BlackElo "2233"]
[TimeControl "180+1"]
[EndTime "10:08:32 PDT"]
[Termination "Game drawn by repetition"]

1. e4 {[%clk 0:03:00.1]} 1... c5 {[%clk 0:02:57.4]} 2. Nf3 {[%clk 0:03:00.2]}
2... Nc6 {[%clk 0:02:57.8]} 3. Nc3 {[%clk 0:02:58.6]} 3... g6 {[%clk 0:02:57.4]}
4. d4 {[%clk 0:02:57.6]} 4... cxd4 {[%clk 0:02:57.7]} 5. Nxd4 {[%clk 0:02:58.5]}
5... Bg7 {[%clk 0:02:58.2]} 6. Be3 {[%clk 0:02:58.8]} 6... Nf6 {[%clk
0:02:58.5]} 7. Bc4 {[%clk 0:02:58.9]} 7... O-O {[%clk 0:02:58.7]} 8. Bb3 {[%clk
0:02:59]} 8... a5 {[%clk 0:02:59.1]} 9. O-O {[%clk 0:02:58.2]} 9... a4 {[%clk
0:02:57.3]} 10. Nxa4 {[%clk 0:02:56.7]} 10... Nxe4 {[%clk 0:02:55.5]} 11. c4
{[%clk 0:02:54.7]} 11... d6 {[%clk 0:02:29.3]} 12. Re1 {[%clk 0:02:50.5]} 12...
Bd7 {[%clk 0:02:17.8]} 13. Nb5 {[%clk 0:02:49.3]} 13... Nf6 {[%clk 0:02:05.5]}
14. Bb6 {[%clk 0:02:27.9]} 14... Qc8 {[%clk 0:02:04.6]} 15. Nc7 {[%clk
0:02:23.4]} 15... Rxa4 {[%clk 0:01:54.7]} 16. Bxa4 {[%clk 0:02:21.5]} 16... Bg4
{[%clk 0:01:54.3]} 17. f3 {[%clk 0:02:15.7]} 17... Bf5 {[%clk 0:01:54.2]} 18.
Nd5 {[%clk 0:01:54.4]} 18... Nxd5 {[%clk 0:01:51.5]} 19. cxd5 {[%clk 0:01:53.9]}
19... Ne5 {[%clk 0:01:46.6]} 20. Rc1 {[%clk 0:01:53.4]} 20... Qa8 {[%clk
0:01:44.7]} 21. Rc7 {[%clk 0:00:31.4]} 21... Nd3 {[%clk 0:01:33.5]} 22. Bb3
{[%clk 0:00:11.9]} 22... Nxe1 {[%clk 0:01:30.6]} 23. Qxe1 {[%clk 0:00:12.8]}
23... Qa6 {[%clk 0:01:30.2]} 24. Bf2 {[%clk 0:00:12.5]} 24... Bf6 {[%clk
0:01:28.3]} 25. Qd2 {[%clk 0:00:09.4]} 25... Bd3 {[%clk 0:01:10.1]} 26. g3
{[%clk 0:00:05.2]} 26... Be2 {[%clk 0:01:07.2]} 27. Kg2 {[%clk 0:00:04.9]} 27...
Bf1+ {[%clk 0:01:06.2]} 28. Kg1 {[%clk 0:00:04.8]} 28... Be2 {[%clk 0:01:05.2]}
29. Kg2 {[%clk 0:00:05.1]} 29... Bf1+ {[%clk 0:01:05.2]} 30. Kg1 {[%clk
0:00:05.3]} 30... Bh3 {[%clk 0:01:05.3]} 31. Bc4 {[%clk 0:00:04]} 31... Qa4
{[%clk 0:01:00.9]} 32. b3 {[%clk 0:00:03.7]} 32... Qa8 {[%clk 0:00:59]} 33. Qh6
{[%clk 0:00:03.3]} 33... Bf5 {[%clk 0:00:56.2]} 34. g4 {[%clk 0:00:03.2]} 34...
Bb1 {[%clk 0:00:54.9]} 35. g5 {[%clk 0:00:03.2]} 35... Bg7 {[%clk 0:00:55.2]}
36. Qh4 {[%clk 0:00:03.4]} 36... Qxa2 {[%clk 0:00:55.4]} 37. Rxe7 {[%clk
0:00:03.4]} 37... Qd2 {[%clk 0:00:54.2]} 38. Re1 {[%clk 0:00:03.3]} 38... Bf5
{[%clk 0:00:52.7]} 39. Qg3 {[%clk 0:00:03]} 39... Bc3 {[%clk 0:00:50.7]} 40. Rf1
{[%clk 0:00:02.4]} 40... Bd3 {[%clk 0:00:49.4]} 41. Bxd3 {[%clk 0:00:02.6]}
41... Qxd3 {[%clk 0:00:50.3]} 42. f4 {[%clk 0:00:03.1]} 42... Qc2 {[%clk
0:00:43.5]} 43. h4 {[%clk 0:00:03.1]} 43... Bg7 {[%clk 0:00:43.5]} 44. h5 {[%clk
0:00:03.4]} 44... Re8 {[%clk 0:00:43.2]} 45. h6 {[%clk 0:00:03.8]} 45... Bb2
{[%clk 0:00:42.6]} 46. Re1 {[%clk 0:00:04]} 46... Rxe1+ {[%clk 0:00:41.2]} 47.
Bxe1 {[%clk 0:00:04.9]} 47... Bd4+ {[%clk 0:00:41]} 48. Bf2 {[%clk 0:00:04.8]}
48... Bxf2+ {[%clk 0:00:38.5]} 49. Qxf2 {[%clk 0:00:05.7]} 49... Qxb3 {[%clk
0:00:38.7]} 50. Qd4 {[%clk 0:00:06.1]} 50... Qb1+ {[%clk 0:00:34.6]} 51. Kg2
{[%clk 0:00:06.6]} 51... Qc2+ {[%clk 0:00:34.9]} 52. Kg3 {[%clk 0:00:06.9]}
52... Qb3+ {[%clk 0:00:34.8]} 53. Kh4 {[%clk 0:00:07.2]} 53... Kf8 {[%clk
0:00:35.2]} 54. Qh8+ {[%clk 0:00:06.9]} 54... Ke7 {[%clk 0:00:35.7]} 55. Qf6+
{[%clk 0:00:07.5]} 55... Ke8 {[%clk 0:00:35.7]} 56. Qh8+ {[%clk 0:00:07.8]}
56... Ke7 {[%clk 0:00:36.1]} 57. Qxh7 {[%clk 0:00:08.3]} 57... Qf3 {[%clk
0:00:36]} 58. Qg7 {[%clk 0:00:07.4]} 58... Qxf4+ {[%clk 0:00:35.4]} 59. Kh3
{[%clk 0:00:08]} 59... Qf3+ {[%clk 0:00:35.8]} 60. Kh2 {[%clk 0:00:08.3]} 60...
Qf2+ {[%clk 0:00:36.1]} 61. Kh1 {[%clk 0:00:08.7]} 61... Qf1+ {[%clk 0:00:36.1]}
62. Kh2 {[%clk 0:00:09.2]} 62... Qf2+ {[%clk 0:00:36.5]} 63. Kh1 {[%clk
0:00:09.7]} 63... Qf1+ {[%clk 0:00:36.5]} 64. Kh2 {[%clk 0:00:10]} 64... Qf2+
{[%clk 0:00:37]} 1/2-1/2

[Event "*** Titled Tuesday Blitz"]
[Site "Chess.com"]
[Date "2020.04.14"]
[Round "1"]
[White "zurzan"]
[Black "NovakCabarkapa"]
[Result "0-1"]
[WhiteElo "1944"]
[BlackElo "2522"]
[TimeControl "180+1"]
[EndTime "10:08:32 PDT"]
[Termination "NovakCabarkapa won by checkmate"]

1. d4 {[%clk 0:03:00.9]} 1... Nf6 {[%clk 0:02:59.2]} 2. Nc3 {[%clk 0:03:00]}
2... e6 {[%clk 0:02:57.7]} 3. Bf4 {[%clk 0:02:57.7]} 3... Bb4 {[%clk 0:02:56.9]}
4. e3 {[%clk 0:02:54.8]} 4... O-O {[%clk 0:02:56]} 5. Bd3 {[%clk 0:02:54]} 5...
d6 {[%clk 0:02:55.9]} 6. Ne2 {[%clk 0:02:53.3]} 6... Nbd7 {[%clk 0:02:55.3]} 7.
O-O {[%clk 0:02:52.4]} 7... e5 {[%clk 0:02:55.1]} 8. Bg3 {[%clk 0:02:49]} 8...
c6 {[%clk 0:02:51.5]} 9. e4 {[%clk 0:02:46.3]} 9... exd4 {[%clk 0:02:50.7]} 10.
Nxd4 {[%clk 0:02:46.2]} 10... Bxc3 {[%clk 0:02:47.6]} 11. bxc3 {[%clk
0:02:45.9]} 11... Nc5 {[%clk 0:02:46.8]} 12. Re1 {[%clk 0:02:31.4]} 12... Re8
{[%clk 0:02:35.4]} 13. f3 {[%clk 0:02:27.8]} 13... Nh5 {[%clk 0:02:33.3]} 14.
Bf2 {[%clk 0:02:19.6]} 14... Nf4 {[%clk 0:02:28.6]} 15. Bf1 {[%clk 0:02:15.3]}
15... Qg5 {[%clk 0:02:15.2]} 16. Kh1 {[%clk 0:02:05.5]} 16... Qh5 {[%clk
0:02:05.5]} 17. g3 {[%clk 0:01:54.2]} 17... Nh3 {[%clk 0:01:59]} 18. Bg1 {[%clk
0:01:47.4]} 18... Nxg1 {[%clk 0:01:46.4]} 19. Kxg1 {[%clk 0:01:46.8]} 19... Bh3
{[%clk 0:01:46.8]} 20. Be2 {[%clk 0:01:33.6]} 20... Rad8 {[%clk 0:01:42.4]} 21.
f4 {[%clk 0:01:23]} 21... Qh6 {[%clk 0:01:38.1]} 22. Bf3 {[%clk 0:01:22.4]}
22... Ne6 {[%clk 0:01:21.9]} 23. Nf5 {[%clk 0:01:17.7]} 23... Bxf5 {[%clk
0:01:21.1]} 24. exf5 {[%clk 0:01:18.6]} 24... Nc5 {[%clk 0:01:18.6]} 25. Rb1
{[%clk 0:01:12.7]} 25... Qf6 {[%clk 0:01:14.6]} 26. Qd4 {[%clk 0:01:06.6]} 26...
Rxe1+ {[%clk 0:01:09.3]} 27. Rxe1 {[%clk 0:01:05.8]} 27... Kf8 {[%clk
0:00:57.3]} 28. Qxf6 {[%clk 0:01:01.3]} 28... gxf6 {[%clk 0:00:58.2]} 29. Re3
{[%clk 0:00:51.5]} 29... d5 {[%clk 0:00:49.1]} 30. Kf2 {[%clk 0:00:51.2]} 30...
Re8 {[%clk 0:00:45.9]} 31. g4 {[%clk 0:00:46.8]} 31... b5 {[%clk 0:00:42.8]} 32.
h4 {[%clk 0:00:45.6]} 32... Na4 {[%clk 0:00:41.2]} 33. Rd3 {[%clk 0:00:43.3]}
33... Nb2 {[%clk 0:00:40.3]} 34. Rd2 {[%clk 0:00:41.1]} 34... Nc4 {[%clk
0:00:40.3]} 35. Rd3 {[%clk 0:00:40.8]} 35... a5 {[%clk 0:00:36.9]} 36. g5 {[%clk
0:00:40]} 36... a4 {[%clk 0:00:36.5]} 37. h5 {[%clk 0:00:39.6]} 37... fxg5
{[%clk 0:00:32.7]} 38. fxg5 {[%clk 0:00:39.6]} 38... Re5 {[%clk 0:00:33.2]} 39.
Bg4 {[%clk 0:00:35.8]} 39... a3 {[%clk 0:00:22.7]} 40. g6 {[%clk 0:00:33.7]}
40... hxg6 {[%clk 0:00:21.5]} 41. hxg6 {[%clk 0:00:34.6]} 41... fxg6 {[%clk
0:00:22]} 42. fxg6 {[%clk 0:00:35]} 42... Kg7 {[%clk 0:00:22.5]} 43. Bd7 {[%clk
0:00:31.5]} 43... Na5 {[%clk 0:00:15.8]} 44. Rg3 {[%clk 0:00:30.3]} 44... Re7
{[%clk 0:00:16.1]} 45. Bf5 {[%clk 0:00:27.8]} 45... Re5 {[%clk 0:00:16.4]} 46.
Bd3 {[%clk 0:00:27.5]} 46... Nb7 {[%clk 0:00:15]} 47. Rf3 {[%clk 0:00:26.9]}
47... Nc5 {[%clk 0:00:14.8]} 48. Rf7+ {[%clk 0:00:26.7]} 48... Kg8 {[%clk
0:00:15.2]} 49. Rc7 {[%clk 0:00:26.3]} 49... Re6 {[%clk 0:00:14.3]} 50. g7
{[%clk 0:00:22.1]} 50... Na4 {[%clk 0:00:11.3]} 51. Bf5 {[%clk 0:00:20.8]} 51...
Rf6 {[%clk 0:00:11.6]} 52. Ke3 {[%clk 0:00:17.1]} 52... Rxf5 {[%clk 0:00:10.8]}
53. Rxc6 {[%clk 0:00:18]} 53... Kxg7 {[%clk 0:00:09.5]} 54. Rd6 {[%clk
0:00:14.1]} 54... Nxc3 {[%clk 0:00:08.4]} 55. Kd4 {[%clk 0:00:14.2]} 55... Nxa2
{[%clk 0:00:06.5]} 56. Rd7+ {[%clk 0:00:14.6]} 56... Kf6 {[%clk 0:00:06.4]} 57.
Rxd5 {[%clk 0:00:14.6]} 57... Rxd5+ {[%clk 0:00:06.3]} 58. Kxd5 {[%clk
0:00:15.5]} 58... Nb4+ {[%clk 0:00:06.9]} 59. Kc5 {[%clk 0:00:15.2]} 59... a2
{[%clk 0:00:07.8]} 60. Kxb4 {[%clk 0:00:15.8]} 60... a1=Q {[%clk 0:00:08.4]} 61.
Kxb5 {[%clk 0:00:16.7]} 61... Ke5 {[%clk 0:00:08.7]} 62. c4 {[%clk 0:00:16.8]}
62... Qc3 {[%clk 0:00:07.7]} 63. c5 {[%clk 0:00:16.7]} 63... Kd5 {[%clk
0:00:08]} 64. c6 {[%clk 0:00:17.4]} 64... Qxc6+ {[%clk 0:00:08.2]} 65. Kb4
{[%clk 0:00:15.4]} 65... Qc4+ {[%clk 0:00:08.3]} 66. Ka3 {[%clk 0:00:15]} 66...
Qb5 {[%clk 0:00:08.7]} 67. Ka2 {[%clk 0:00:14.9]} 67... Qb4 {[%clk 0:00:09.6]}
68. Ka1 {[%clk 0:00:14.6]} 68... Kc4 {[%clk 0:00:10.5]} 69. Ka2 {[%clk
0:00:14.9]} 69... Kc3 {[%clk 0:00:11.4]} 70. Ka1 {[%clk 0:00:14.4]} 70... Qb2#
{[%clk 0:00:12.3]} 0-1